bitfinex-derivatives/quotes_BNBF0:USTF0_20251002
["timestamp","ask_amount","ask_price","bid_price","bid_amount"]
[1759373832289,0.16793543,1036.7,1035.3,5.85978203]
[1759373832489,0.16793543,1036.7,1035.3,5.2155999]
[1759373833790,0.16793543,1036.7,1035.3,5.85978203]
[1759373835393,0.16793543,1036.7,1035.3,5.2155999]
[1759373863718,0.16793543,1036.7,1035.3,5.85766571]
[1759373864521,0.16793543,1036.7,1035.3,5.2155999]
[1759373866622,0.16793543,1036.7,1035.3,5.85766571]
[1759373866820,0.16793543,1036.7,1035.4,0.64206581]
[1759373869423,0.16793543,1036.7,1035.5,0.64206581]
[1759373870618,0.16793543,1036.7,1035.4,0.64206581]
[1759373875327,0.16793543,1036.7,1035.5,0.64206581]
[1759373878328,0.16793543,1036.7,1035.6,0.64206581]
[1759373878525,0.16793543,1036.7,1035.7,0.64206581]
[1759373879227,0.86377906,1036.9,1035.7,0.64206581]
[1759373879428,1.03167641,1036.9,1035.8,0.64206581]
[1759373882729,0.16789735,1036.9,1035.9,0.64206581]
[1759373890335,0.16789735,1036.9,1035.8,0.64206581]
[1759373896644,0.86377906,1037.4,1035.7,0.64206581]
[1759373896844,0.16786658,1037.1,1035.8,0.64206581]
[1759373897041,0.16786658,1037.1,1035.8,5.62786072]
[1759373897541,0.16786658,1037.1,1035.9,0.64206581]
[1759373897845,0.16786658,1037.1,1036.0,0.64206581]
[1759373901846,0.16786658,1037.1,1035.8,5.62786072]
[1759373905648,0.16786658,1037.1,1035.9,0.64206581]
[1759373907149,0.86377906,1037.6,1035.9,0.64206581]
[1759373907345,0.86377906,1037.8,1035.9,0.64206581]
[1759373907551,0.16782124,1037.4,1036.0,0.64206581]
[1759373907950,0.16782124,1037.4,1035.9,0.64206581]
[1759373908150,0.16782124,1037.4,1036.1,0.64206581]
[1759373908348,0.16782124,1037.4,1036.2,0.64206581]
[1759373910146,0.86377906,1038.0,1036.2,0.64206581]
[1759373910352,0.16777674,1037.6,1036.2,0.64206581]
[1759373910651,0.16777674,1037.6,1036.1,0.64206581]
[1759373911752,0.16777674,1037.6,1035.8,5.8419578]
[1759373912053,0.16777674,1037.6,1036.1,0.6422465]
[1759373916050,0.16777674,1037.6,1036.2,0.6422465]
[1759373917457,0.16777674,1037.6,1036.1,0.6422465]
[1759373917755,0.16777674,1037.6,1036.2,0.6422465]
[1759373919351,0.16777674,1037.6,1036.2,0.64076324]
[1759373920955,0.86377906,1038.1,1036.2,0.64076324]
[1759373925159,0.86377906,1038.2,1036.1,0.64076324]
[1759373932164,0.86377906,1038.2,1036.2,0.64076324]
[1759373933665,0.86377906,1038.2,1036.1,0.64076324]
[1759373934365,0.86377906,1038.1,1036.1,0.64076324]
[1759373934568,0.86377906,1038.1,1036.2,0.64076324]
[1759373936567,0.86377906,1038.1,1035.8,6.27003925]
[1759373936568,0.86377906,1038.2,1036.1,0.64076324]
[1759373936771,0.86377906,1038.1,1036.0,0.64076324]
[1759373937272,0.86377906,1038.1,1036.1,0.64076324]
[1759373939067,0.86377906,1038.1,1036.0,0.64076324]
[1759373939269,0.86377906,1038.1,1036.1,0.64076324]
[1759373939572,0.86377906,1037.9,1036.0,0.64076324]
[1759373940072,0.86377906,1037.8,1036.0,0.64076324]
[1759373940770,0.86377906,1037.8,1036.1,0.64076324]
[1759373941269,0.86377906,1037.8,1035.9,0.85616289]
[1759373941270,0.86377906,1037.8,1036.0,0.64076324]
[1759373941572,0.86377906,1037.8,1036.1,0.64076324]
[1759373944574,0.86377906,1037.9,1036.2,0.64076324]
[1759373949175,0.86377906,1038.0,1036.3,0.64076324]
[1759373949373,0.86377906,1037.9,1036.3,0.64076324]
[1759373953277,0.86377906,1037.9,1036.4,0.64076324]
[1759373954177,0.86377906,1037.8,1036.4,0.64076324]
[1759373956079,2.1611556,1038.7,1036.2,0.64076324]
[1759373956080,0.86377906,1037.7,1036.2,0.64076324]
[1759373956879,0.86377906,1037.8,1036.2,0.64076324]
[1759373961886,0.86377906,1037.7,1036.2,0.64076324]
[1759373963592,0.86377906,1037.6,1036.2,0.64076324]
[1759373963893,0.86377906,1037.5,1036.2,0.64076324]
[1759373964088,2.1611556,1038.9,1036.2,0.64076324]
[1759373964089,0.86377906,1037.4,1036.2,0.64076324]
[1759373966189,0.86377906,1037.4,1036.1,0.64076324]
[1759373967990,0.86377906,1037.4,1036.2,0.64076324]
[1759373968199,0.86377906,1037.4,1036.1,0.64076324]
[1759373968694,0.86377906,1037.5,1036.1,0.64076324]
[1759373970289,0.86377906,1037.5,1036.0,0.64076324]
[1759373972994,0.86377906,1037.2,1036.0,0.64076324]
[1759373973194,0.86377906,1037.2,1035.9,0.64076324]
[1759373973397,0.86377906,1037.2,1035.8,5.8419578]
[1759373973398,0.86377906,1037.4,1035.8,4.98579491]
[1759373978196,0.86377906,1037.5,1035.8,4.98579491]
[1759373978401,0.86377906,1037.1,1035.8,4.98579491]
[1759373978696,0.86377906,1036.9,1035.8,4.98579491]
[1759373978896,0.86377906,1037.1,1035.8,4.98579491]
[1759373979100,0.86377906,1036.9,1035.8,4.98579491]
[1759373979498,0.86377906,1037.0,1035.1,0.6439687]
[1759373981302,0.86377906,1037.1,1035.0,0.6439687]
[1759373981800,0.86377906,1037.0,1035.0,0.6439687]
[1759373982100,0.86377906,1037.1,1035.0,0.6439687]
[1759373984203,0.86377906,1037.2,1034.9,0.6439687]
[1759373987602,0.86377906,1037.1,1034.8,29.95632058]
[1759373987806,0.86377906,1037.1,1034.9,0.6439687]
[1759373988106,2.1611556,1038.5,1034.9,0.6439687]
[1759373988107,0.86377906,1037.0,1034.9,0.6439687]
[1759373988307,0.86377906,1037.1,1034.9,0.6439687]
[1759373990306,0.86377906,1037.1,1034.8,0.6439687]
[1759373992206,0.86377906,1037.1,1034.7,0.6439687]
[1759373994408,0.86377906,1037.2,1034.7,0.6439687]
[1759373997711,0.86377906,1037.1,1034.8,0.6439687]
[1759374000009,0.86377906,1037.0,1034.8,0.6439687]
[1759374000213,0.86377906,1037.1,1034.7,0.6439687]
[1759374000810,0.86377906,1037.2,1034.8,0.6439687]
[1759374003815,0.86377906,1037.1,1034.8,0.6439687]
[1759374004119,0.86377906,1037.5,1034.4,0.6439687]
[1759374004815,0.86377906,1037.4,1034.5,0.6439687]
[1759374005314,0.86377906,1037.3,1034.5,0.6439687]
[1759374006412,0.86377906,1037.3,1034.6,0.6439687]
[1759374008019,0.86377906,1037.1,1034.7,0.6439687]
[1759374012121,0.86377906,1037.1,1034.8,0.6439687]
[1759374014428,0.86377906,1037.0,1034.8,0.6439687]
[1759374017029,1.29566859,1037.2,1034.4,1.28424434]
[1759374017324,1.29566859,1037.2,1033.2,2.99763735]
[1759374019437,0.85868631,1037.0,1034.9,0.64232801]
[1759374019733,0.85868631,1037.0,1034.8,0.64232801]
[1759374020232,0.85868631,1036.9,1034.9,0.64232801]
[1759374024839,0.85868631,1037.5,1034.7,0.64232801]
[1759374025035,0.85868631,1037.6,1034.7,0.64232801]
[1759374025239,0.85868631,1037.5,1034.7,0.64232801]
[1759374025539,0.85868631,1037.6,1034.7,0.64232801]
[1759374026139,0.85868631,1037.5,1034.8,0.64232801]
[1759374029642,0.85868631,1037.4,1034.9,0.64232801]
[1759374029942,0.85868631,1037.2,1034.9,0.64232801]
[1759374030142,0.85868631,1037.2,1035.0,0.64232801]
[1759374031444,0.85868631,1037.1,1035.0,0.64232801]
[1759374032242,0.85868631,1037.0,1035.1,0.64232801]
[1759374033542,0.85868631,1036.9,1035.1,0.64232801]
[1759374033748,0.85868631,1036.8,1035.2,0.64232801]
[1759374034247,0.85868631,1036.7,1035.2,0.64232801]
[1759374036147,0.85868631,1036.7,1035.3,0.64232801]
[1759374036946,0.85868631,1036.6,1035.3,0.64232801]
[1759374037146,0.85868631,1036.5,1035.4,0.64232801]
[1759374037345,0.85868631,1036.4,1035.4,0.64232801]
[1759374038046,0.85868631,1036.3,1035.2,0.64232801]
[1759374038947,0.85868631,1036.2,1035.2,0.64232801]
[1759374041949,0.85868631,1036.3,1035.2,0.64232801]
[1759374047856,0.85868631,1036.4,1035.2,0.64232801]
[1759374052157,0.85868631,1036.4,1035.1,0.64232801]
[1759374054956,0.85868631,1036.3,1035.2,0.64232801]
[1759374055661,0.85868631,1036.4,1035.2,0.64232801]
[1759374057860,0.85868631,1036.5,1035.2,0.64232801]
[1759374058859,0.85868631,1036.5,1035.1,0.64232801]
[1759374060964,0.85868631,1036.6,1035.1,0.64232801]
[1759374061263,0.85868631,1036.9,1035.6,0.64232801]
[1759374061865,0.85868631,1037.0,1035.5,0.64232801]
[1759374062264,1.2880294,1037.2,1035.4,0.64232801]
[1759374062265,0.85868631,1036.9,1035.4,0.64232801]
[1759374066465,0.85868631,1036.8,1035.4,0.64232801]
[1759374066965,0.85868631,1036.6,1035.4,0.64232801]
[1759374067966,0.85868631,1036.7,1035.4,0.64232801]
[1759374068466,0.85868631,1036.6,1035.3,0.64232801]
[1759374070368,0.85868631,1036.6,1035.5,0.64232801]
[1759374071369,0.85868631,1036.7,1035.6,0.64232801]
[1759374072167,0.85868631,1036.8,1035.6,0.64232801]
[1759374072372,0.85868631,1036.8,1035.5,0.64232801]
[1759374073872,0.85868631,1036.9,1035.5,0.64232801]
[1759374074071,0.85868631,1036.8,1035.5,0.64232801]
[1759374074270,0.85868631,1036.9,1035.6,0.64232801]
[1759374074470,0.85868631,1037.0,1035.6,0.64232801]
[1759374077278,0.85868631,1037.1,1035.6,0.64232801]
[1759374078777,0.85868631,1037.1,1035.6,0.6464525]
[1759374080279,0.85868631,1037.1,1035.5,0.6464525]
[1759374082083,0.85868631,1036.9,1035.4,0.6464525]
[1759374082480,0.85868631,1036.8,1035.4,0.6464525]
[1759374082877,0.85868631,1036.8,1035.3,0.6464525]
[1759374084976,0.85868631,1036.7,1035.2,0.6464525]
[1759374085781,0.85868631,1036.6,1035.1,0.6464525]
[1759374086277,0.85868631,1036.5,1035.2,0.6464525]
[1759374086581,0.85868631,1036.4,1035.1,0.6464525]
[1759374087884,0.85868631,1036.6,1034.9,0.6464525]
[1759374090184,0.85868631,1036.7,1034.9,0.6464525]
[1759374090882,0.85868631,1036.6,1034.8,0.6464525]
[1759374092783,0.85868631,1036.5,1034.8,0.6464525]
[1759374092986,0.85868631,1036.3,1034.7,0.6464525]
[1759374095584,0.85868631,1036.4,1034.8,0.6464525]
[1759374096388,0.85868631,1036.4,1034.7,0.6464525]
[1759374097190,0.85868631,1036.4,1034.8,0.6464525]
[1759374097391,0.85868631,1036.4,1034.7,0.6464525]
[1759374098090,0.85868631,1036.5,1034.7,0.6464525]
[1759374098290,0.85868631,1036.5,1034.6,0.6464525]
[1759374099288,0.85868631,1036.6,1034.6,0.6464525]
[1759374099592,0.85868631,1036.6,1034.7,0.6464525]
[1759374100393,0.85868631,1036.7,1034.8,0.6464525]
[1759374100593,0.85868631,1036.6,1034.8,0.6464525]
[1759374101397,0.85868631,1036.5,1034.8,0.6464525]
[1759374102195,0.85868631,1036.5,1034.7,0.6464525]
[1759374102395,0.85868631,1036.5,1034.8,0.6464525]
[1759374102794,0.85868631,1036.4,1034.8,0.6464525]
[1759374102998,0.85868631,1036.4,1034.7,0.6464525]
[1759374104995,0.85868631,1036.6,1034.6,0.6464525]
[1759374105694,0.85868631,1036.7,1034.6,0.6464525]
[1759374106496,0.85868631,1036.7,1034.7,0.6464525]
[1759374107301,0.85868631,1036.8,1034.8,0.6464525]
[1759374107795,0.85868631,1036.9,1034.8,0.6464525]
[1759374108398,0.85868631,1036.6,1034.9,0.6464525]
[1759374112003,0.85868631,1036.7,1034.8,0.6464525]
[1759374112299,0.85868631,1036.5,1034.6,0.6464525]
[1759374112602,0.85868631,1036.6,1034.6,0.6464525]
[1759374117202,0.85868631,1036.7,1034.6,0.6464525]
[1759374119003,0.16802219,1036.2,1034.6,0.6464525]
[1759374120807,0.16802219,1036.2,1034.5,0.81447469]
[1759374121507,0.16802219,1036.2,1034.5,0.16802219]
[1759374126312,1.0267085,1036.2,1034.5,0.81447469]
[1759374128319,0.16802219,1036.2,1034.5,0.81447469]
[1759374128518,0.16802219,1036.2,1034.6,0.6464525]
[1759374129416,0.16802219,1036.2,1034.7,0.6464525]
[1759374129817,0.16802219,1036.2,1034.6,0.6464525]
[1759374130018,0.16802219,1036.2,1034.7,0.6464525]
[1759374130217,0.16802219,1036.2,1034.6,0.6464525]
[1759374130521,0.16802219,1036.2,1034.7,0.6464525]
[1759374131818,0.16802219,1036.2,1034.6,0.6464525]
[1759374132016,0.16802219,1036.2,1034.5,0.16802219]
[1759374132521,0.85868631,1036.1,1034.5,0.16802219]
[1759374144224,0.85868631,1036.1,1034.5,0.81447469]
[1759374145123,1.0267085,1036.2,1034.5,0.16802219]
[1759374145420,0.85868631,1036.1,1034.5,0.16802219]
[1759374149823,0.85868631,1036.1,1034.5,0.81447469]
[1759374151726,1.0267085,1036.2,1034.5,0.81447469]
[1759374152027,1.0267085,1036.2,1034.6,0.6464525]
[1759374156130,0.85868631,1036.1,1034.6,0.6464525]
[1759374156531,0.85868631,1036.0,1034.6,0.6464525]
[1759374156731,0.85868631,1035.9,1034.5,0.81447469]
[1759374158530,0.85868631,1036.0,1034.5,0.81447469]
[1759374163535,0.85868631,1036.0,1034.5,0.16802219]
[1759374165037,0.85868631,1036.1,1034.5,0.16802219]
[1759374166638,0.85868631,1036.0,1034.5,0.16802219]
[1759374166838,0.85868631,1036.1,1034.5,0.81447469]
[1759374167536,0.85868631,1036.1,1034.6,0.6464525]
[1759374167744,1.0267085,1036.2,1034.7,0.6464525]
[1759374167941,1.0267085,1036.2,1034.8,0.6464525]
[1759374168245,0.16802219,1036.2,1034.7,0.6464525]
[1759374168448,0.16802219,1036.2,1034.5,0.16802219]
[1759374168449,0.16802219,1036.2,1034.8,0.6464525]
[1759374173643,0.16802219,1036.2,1034.9,0.6464525]
[1759374175646,1.0267085,1036.2,1034.9,0.6464525]
[1759374175950,1.0267085,1036.2,1034.8,0.6464525]
[1759374177250,1.0267085,1036.2,1034.9,0.6464525]
[1759374178353,0.85868631,1036.1,1034.8,0.6464525]
[1759374181354,1.0267085,1036.2,1034.7,0.6464525]
[1759374181553,0.85868631,1036.1,1034.7,0.6464525]
[1759374183558,0.85868631,1036.0,1034.6,0.6464525]
[1759374184853,0.85868631,1036.0,1034.7,0.6464525]
[1759374185056,0.85868631,1036.0,1034.6,0.6464525]
[1759374187258,0.85868631,1036.0,1034.7,0.6464525]
[1759374189357,0.85868631,1036.0,1034.6,0.6464525]
[1759374190460,0.85868631,1036.0,1034.5,0.81447469]
[1759374191763,0.85868631,1035.9,1034.6,0.6464525]
[1759374192365,0.85868631,1035.9,1034.5,0.81447469]
[1759374195564,0.85868631,1035.8,1034.6,0.6464525]
[1759374197065,0.85868631,1035.7,1034.5,0.81447469]
[1759374198165,0.85868631,1035.7,1034.5,0.16802219]
[1759374198363,0.85868631,1035.7,1034.5,0.81447469]
[1759374199261,0.85868631,1035.7,1034.5,0.16802219]
[1759374200267,0.85868631,1035.7,1034.4,0.6464525]
[1759374200969,0.85868631,1035.6,1034.4,0.6464525]
[1759374201166,0.85868631,1035.6,1034.3,0.81457128]
[1759374201365,0.85868631,1035.5,1034.3,0.81457128]
[1759374201964,0.85868631,1035.5,1034.3,0.16811878]
[1759374202168,0.85868631,1035.6,1034.3,0.16811878]
[1759374204065,0.85868631,1035.6,1034.0,0.6464525]
[1759374204266,0.85868631,1035.5,1034.0,0.6464525]
[1759374204569,0.85868631,1035.5,1034.1,0.16815697]
[1759374207270,0.85868631,1035.6,1034.1,0.16815697]
[1759374208474,1.2880294,1035.8,1034.1,0.16815697]
[1759374208475,0.85868631,1035.5,1034.1,0.16815697]
[1759374208769,0.85868631,1035.6,1034.1,0.16815697]
[1759374211671,0.85868631,1035.7,1034.1,0.16815697]
[1759374212070,0.85868631,1035.8,1034.1,0.16815697]
[1759374212272,0.85868631,1035.6,1034.1,0.81460947]
[1759374212471,0.85868631,1035.7,1034.2,0.6464525]
[1759374214372,0.85868631,1035.8,1034.2,0.6464525]
[1759374214571,0.85868631,1035.7,1034.2,0.6464525]
[1759374214774,0.85868631,1035.8,1034.2,0.6464525]
[1759374215170,0.85868631,1035.8,1034.1,0.81460947]
[1759374218474,0.85868631,1035.9,1034.1,0.81460947]
[1759374218674,0.85868631,1035.9,1034.1,0.16815697]
[1759374222577,0.85868631,1036.0,1034.1,0.16815697]
[1759374223273,0.85868631,1035.9,1034.1,0.16815697]
[1759374223478,0.85868631,1036.0,1034.1,0.16815697]
[1759374223977,0.85868631,1035.9,1034.1,0.16815697]
[1759374224175,0.85868631,1036.0,1034.1,0.16815697]
[1759374225379,0.85868631,1035.9,1034.1,0.81460947]
[1759374225579,0.85868631,1035.8,1034.1,0.81460947]
[1759374228183,0.85868631,1035.9,1034.1,0.81460947]
[1759374233280,0.85868631,1035.8,1034.2,0.6464525]
[1759374233485,1.0267085,1036.2,1034.3,0.6464525]
[1759374237088,1.0267085,1036.2,1034.4,0.6464525]
[1759374237285,1.0267085,1036.2,1034.3,0.6464525]
[1759374238190,0.85868631,1036.1,1034.3,0.6464525]
[1759374239787,0.85868631,1035.8,1034.3,0.6464525]
[1759374240188,0.85868631,1035.9,1034.3,0.6464525]
[1759374240389,0.85868631,1035.7,1034.2,0.6464525]
[1759374243294,0.85868631,1035.7,1034.3,0.6464525]
[1759374244294,0.85868631,1036.0,1034.0,0.6464525]
[1759374244493,0.16802219,1036.2,1033.6,0.6464525]
[1759374244494,0.85868631,1035.6,1033.6,0.6464525]
[1759374244694,0.85868631,1035.6,1033.8,0.16816184]
[1759374248399,0.85868631,1035.5,1033.8,0.16816184]
[1759374252296,0.85868631,1035.5,1033.8,0.81461434]
[1759374252498,1.2880294,1035.7,1033.8,0.81461434]
[1759374252697,0.85868631,1035.6,1033.8,0.16816184]
[1759374253503,0.85868631,1035.5,1033.8,0.16816184]
[1759374257104,0.85868631,1035.4,1033.8,0.16816184]
[1759374257306,0.85868631,1035.3,1033.8,0.16816184]
[1759374262208,0.85868631,1035.3,1033.8,0.81461434]
[1759374262408,0.85868631,1035.3,1033.8,0.16816184]
[1759374263108,0.85868631,1035.3,1033.8,0.81461434]
[1759374263308,0.85868631,1035.3,1033.8,0.16816184]
[1759374264010,0.85868631,1035.4,1033.8,0.16816184]
[1759374264407,0.85868631,1035.5,1033.8,0.16816184]
[1759374264608,0.85868631,1035.6,1033.8,0.81461434]
[1759374265009,0.85868631,1035.5,1033.9,0.6464525]
[1759374265208,0.85868631,1035.6,1034.0,0.6464525]
[1759374268710,0.85868631,1035.7,1034.0,0.6464525]
[1759374272018,0.85868631,1035.6,1034.1,0.6464525]
[1759374272219,0.85868631,1035.7,1034.2,0.6464525]
[1759374272418,0.85868631,1035.8,1034.2,0.6464525]
[1759374272615,0.85868631,1035.9,1034.3,0.6464525]
[1759374274120,0.85868631,1035.9,1034.4,0.6464525]
[1759374274316,0.85868631,1036.1,1034.4,0.6464525]
[1759374276019,0.85868631,1036.1,1034.5,0.6464525]
[1759374278224,1.0267085,1036.2,1034.5,0.6464525]
[1759374278820,1.0267085,1036.2,1034.4,0.6464525]
[1759374280920,0.16802219,1036.2,1034.4,0.6464525]
[1759374287124,0.16802219,1036.2,1034.3,0.6464525]
[1759374294332,0.16802219,1036.2,1034.4,0.6464525]
[1759374299535,0.16802219,1036.2,1034.5,0.6464525]
[1759374303241,0.16802219,1036.2,1034.6,0.6464525]
[1759374305741,0.16802219,1036.2,1034.7,0.6464525]
[1759374307545,0.85868631,1037.0,1034.7,0.6464525]
[1759374307942,0.16797353,1036.3,1034.7,0.6464525]
[1759374308146,0.85868631,1037.0,1034.7,0.6464525]
[1759374308445,0.16797353,1036.3,1034.8,0.6464525]
[1759374308644,0.85868631,1037.0,1034.8,0.6464525]
[1759374309143,0.16796948,1036.3,1034.8,0.6464525]
[1759374309347,0.85868631,1036.9,1034.8,0.6464525]
[1759374309547,0.16797353,1036.3,1034.8,0.6464525]
[1759374310050,0.16797353,1036.3,1034.7,0.6464525]
[1759374319254,0.16797353,1036.3,1034.8,0.6464525]
[1759374319952,0.85868631,1037.1,1034.8,0.6464525]
[1759374320153,0.16795164,1036.5,1034.9,0.6464525]
[1759374320354,0.16795164,1036.5,1035.1,0.6464525]
[1759374320755,0.16795164,1036.5,1035.0,0.6464525]
[1759374321259,0.16795164,1036.5,1035.1,0.6464525]
[1759374322758,0.16795164,1036.5,1035.0,0.6464525]
[1759374322957,0.16795164,1036.5,1034.8,0.6464525]
[1759374324057,0.16795164,1036.5,1034.6,0.85643735]
[1759374324058,0.16795164,1036.5,1034.6,0.6464525]
[1759374324557,0.85868631,1036.4,1034.3,0.6464525]
[1759374324761,0.85868631,1036.4,1034.3,0.64464173]
[1759374326461,1.02663795,1036.5,1034.4,0.64464173]
[1759374327660,1.02663795,1036.5,1034.5,0.64464173]
[1759374328262,0.85868631,1036.4,1034.5,0.64464173]
[1759374330265,0.85868631,1036.4,1034.6,0.64464173]
[1759374330763,1.02663795,1036.5,1034.8,0.64464173]
[1759374331162,0.85868631,1036.4,1034.8,0.64464173]
[1759374333667,0.85868631,1036.4,1034.9,0.64464173]
[1759374333870,1.02663795,1036.5,1035.0,0.64464173]
[1759374334067,0.16795164,1036.5,1035.1,0.64464173]
[1759374338878,0.16795164,1036.5,1035.2,0.64464173]
[1759374339371,0.16795164,1036.5,1035.1,0.64464173]
[1759374339574,0.16795164,1036.5,1035.2,0.64464173]
[1759374343779,0.16795164,1036.5,1035.3,0.64464173]
[1759374345282,0.85868631,1036.9,1035.3,0.64464173]
[1759374345476,0.85868631,1037.0,1035.3,0.64464173]
[1759374345680,0.16792976,1036.6,1035.3,0.64464173]
[1759374347184,0.16792976,1036.6,1035.2,0.64464173]
[1759374347586,0.16792976,1036.6,1035.1,0.64464173]
[1759374350281,1.02661607,1036.6,1034.9,0.64464173]
[1759374350488,1.02661607,1036.6,1034.2,5.70827805]
[1759374350489,1.02661607,1036.6,1034.8,0.64464173]
[1759374353090,0.85868631,1036.4,1034.8,0.64464173]
[1759374353288,0.85868631,1036.3,1034.8,0.64464173]
[1759374353487,0.85868631,1036.3,1034.7,0.64464173]
[1759374354188,0.85868631,1036.2,1034.7,0.64464173]
[1759374354689,0.85868631,1036.2,1034.7,0.64649819]
[1759374356491,0.85868631,1036.1,1034.6,0.64649819]
[1759374362195,0.85868631,1036.1,1034.5,0.64649819]
[1759374362395,0.85868631,1036.1,1034.6,0.64649819]
[1759374362593,0.85868631,1036.1,1034.5,0.64649819]
[1759374363706,0.85868631,1036.2,1034.6,0.64649819]
[1759374364406,0.85868631,1036.2,1034.5,0.64649819]
[1759374364907,0.85868631,1036.2,1034.6,0.64649819]
[1759374365206,0.85868631,1036.2,1034.5,0.64649819]
[1759374365400,0.85868631,1036.2,1034.6,0.64649819]
[1759374365803,0.85868631,1036.2,1034.5,0.64649819]
[1759374366102,0.85868631,1036.2,1034.4,0.85643735]
[1759374366103,0.85868631,1036.2,1034.6,0.64649819]
[1759374367606,0.85868631,1036.2,1034.5,0.64649819]
[1759374368000,0.85868631,1036.2,1034.6,0.64649819]
[1759374369003,1.02661607,1036.6,1034.5,0.64649819]
[1759374369207,0.16792976,1036.6,1034.6,0.64649819]
[1759374370303,1.02661607,1036.6,1034.6,0.64649819]
[1759374371105,1.02661607,1036.6,1034.7,0.64649819]
[1759374372111,1.02661607,1036.6,1034.8,0.64649819]
[1759374372710,0.85868631,1036.5,1034.8,0.64649819]
[1759374378313,1.02661607,1036.6,1034.8,0.64649819]
[1759374379114,1.02661607,1036.6,1034.9,0.64649819]
[1759374379910,1.02661607,1036.6,1034.7,0.85643735]
[1759374379911,0.16792976,1036.6,1035.0,0.64649819]
[1759374380314,1.02661607,1036.6,1035.0,0.64649819]
[1759374381513,0.85868631,1036.5,1035.0,0.64649819]
[1759374382010,0.85868631,1036.4,1034.9,0.64649819]
[1759374383316,0.16792976,1036.6,1034.5,0.64649819]
[1759374384115,1.02661607,1036.6,1034.4,0.64649819]
[1759374385318,0.85868631,1036.5,1034.5,0.64649819]
[1759374385517,1.02661607,1036.6,1034.5,0.64649819]
[1759374385817,1.02661607,1036.6,1034.6,0.64649819]
[1759374387215,0.85868631,1036.5,1034.6,0.64649819]
[1759374387517,0.85868631,1036.3,1034.7,0.64649819]
[1759374389423,0.85868631,1036.2,1034.7,0.64649819]
[1759374389616,0.85868631,1036.2,1034.6,0.64649819]
[1759374390121,0.85868631,1036.1,1034.4,0.85643735]
[1759374390318,0.85868631,1036.1,1034.6,0.64525838]
[1759374390817,0.85868631,1036.2,1034.6,0.64525838]
[1759374391018,0.85868631,1036.1,1034.6,0.64525838]
[1759374391221,0.85868631,1036.2,1034.6,0.64525838]
[1759374391517,0.85868631,1036.1,1034.6,0.64525838]
[1759374392022,0.85868631,1036.2,1034.6,0.64525838]
[1759374392721,0.85868631,1036.2,1034.5,0.64525838]
[1759374393722,0.85868631,1036.1,1034.3,0.64525838]
[1759374395223,0.85868631,1036.2,1034.3,0.64525838]
[1759374395424,0.85868631,1036.1,1034.3,0.64525838]
[1759374395725,0.85868631,1036.0,1034.3,0.64525838]
[1759374396020,0.85868631,1036.0,1034.4,0.64525838]
[1759374396225,0.85868631,1035.9,1034.3,0.64525838]
[1759374396721,0.85868631,1036.0,1034.3,0.64525838]
[1759374398025,0.85868631,1035.9,1034.2,6.35353643]
[1759374399725,0.85868631,1036.0,1034.2,6.35353643]
[1759374399922,0.85868631,1035.9,1034.2,6.35353643]
[1759374400925,0.85868631,1036.0,1034.2,6.35353643]
[1759374401424,0.85868631,1036.1,1034.3,0.64525838]
[1759374403222,0.85868631,1036.0,1034.4,0.64525838]
[1759374403823,0.85868631,1036.0,1034.3,0.64525838]
[1759374404122,0.85868631,1035.9,1034.2,6.35353643]
[1759374405321,0.85868631,1035.9,1034.3,0.64525838]
[1759374405523,0.85868631,1035.9,1034.2,6.35353643]
[1759374406322,0.85868631,1035.9,1034.3,0.64525838]
[1759374406626,0.85868631,1035.7,1034.2,6.35353643]
[1759374410229,0.85868631,1035.9,1034.2,5.70827805]
[1759374410527,0.85868631,1035.9,1034.1,0.64525838]
[1759374411729,0.85868631,1036.0,1034.1,0.64525838]
[1759374411925,0.85868631,1035.8,1033.9,0.64525838]
[1759374412126,0.85868631,1035.7,1033.9,0.64525838]
[1759374413330,0.85868631,1035.6,1033.8,0.81342022]
[1759374413526,0.85868631,1035.4,1033.8,0.81342022]
[1759374413932,0.85868631,1035.3,1033.8,0.16816184]
[1759374414134,0.85868631,1035.4,1033.8,0.16816184]
[1759374417034,0.85868631,1035.5,1033.8,0.16816184]
[1759374421234,0.85868631,1035.4,1033.8,0.16816184]
[1759374422736,1.2880294,1035.6,1033.8,0.16816184]
[1759374422737,0.85868631,1035.5,1033.8,0.16816184]
[1759374423536,0.85868631,1035.6,1033.8,0.16816184]
[1759374424841,0.85868631,1035.7,1033.8,0.16816184]
[1759374430840,0.85868631,1035.8,1033.8,0.16816184]
[1759374432441,0.85868631,1035.7,1033.8,0.16816184]
[1759374437148,0.85868631,1035.8,1033.8,0.16816184]
[1759374439149,0.85868631,1035.7,1033.8,0.16816184]
[1759374439650,0.85868631,1035.8,1033.8,0.16816184]
[1759374439850,0.16792976,1036.6,1033.8,0.16816184]
[1759374439851,0.85868631,1035.9,1033.8,0.16816184]
[1759374440345,0.85868631,1035.8,1033.8,0.16816184]
[1759374443147,0.85868631,1035.7,1033.8,0.16816184]
[1759374444654,0.85868631,1035.7,1033.7,0.64525838]
[1759374444949,0.85868631,1035.7,1033.9,0.16816103]
[1759374447453,0.85868631,1035.8,1033.9,0.16816103]
[1759374449154,0.85868631,1035.7,1033.9,0.16816103]
[1759374449957,0.85868631,1035.8,1033.9,0.16816103]
[1759374450256,0.85868631,1035.7,1033.9,0.16816103]
[1759374454962,0.85868631,1035.6,1033.9,0.16816103]
[1759374457463,0.85868631,1035.5,1033.9,0.16816103]
[1759374457867,0.85868631,1035.8,1034.1,0.64525838]
[1759374458167,0.85868631,1035.7,1034.1,0.64525838]
[1759374458368,0.85868631,1035.6,1034.1,0.64525838]
[1759374458568,0.85868631,1035.7,1034.2,0.64525838]
[1759374459769,0.85868631,1035.6,1034.3,0.64525838]
[1759374461770,0.85868631,1035.7,1034.3,0.64525838]
[1759374462069,0.85868631,1035.8,1034.3,0.64525838]
[1759374463175,0.85868631,1035.7,1034.3,0.64525838]
[1759374463775,0.85868631,1035.8,1034.3,0.64525838]
[1759374464177,0.85868631,1035.7,1034.3,0.64525838]
[1759374464874,0.85868631,1035.8,1034.3,0.64525838]
[1759374468377,1.2880294,1036.1,1033.9,0.16816103]
[1759374468573,0.16792976,1036.6,1033.9,0.16816103]
[1759374469676,0.86542512,1035.8,1034.3,0.64752765]
[1759374470178,0.86542512,1035.8,1034.2,0.64752765]
[1759374470479,0.86542512,1035.8,1034.0,0.8633702]
[1759374470480,0.86542512,1035.8,1034.3,0.64752765]
[1759374476180,0.86542512,1035.7,1034.3,0.64752765]
[1759374483486,0.86542512,1035.7,1034.2,6.25832683]
[1759374483688,0.86542512,1035.7,1034.3,0.64739254]
[1759374487894,0.86542512,1035.8,1034.3,0.64739254]
[1759374490192,0.86542512,1035.7,1034.3,0.64739254]
[1759374490392,0.86542512,1035.8,1034.3,0.64739254]
[1759374492196,0.86542512,1035.7,1034.3,0.64739254]
[1759374495000,0.86542512,1035.8,1034.3,0.64739254]
[1759374496800,0.86542512,1035.7,1034.3,0.64739254]
[1759374498901,0.86542512,1035.8,1034.3,0.64739254]
[1759374501401,1.2981376,1036.0,1034.3,0.64739254]
[1759374501402,0.86542512,1035.7,1034.3,0.64739254]
[1759374506007,0.86542512,1035.7,1034.4,0.64739254]
[1759374506204,0.86542512,1035.9,1034.5,0.64739254]